Cogmind - Beta 13 @@@ ROGUE MODE // 2024.04.28 @ 13:19:33 Player: MiNathan Result: Destroyed by Y-45 Defender with Beam Rifle Performance ------------- Evolutions (0) 0 Regions Visited (2) 400 Robots Destroyed (12) 60 Value Destroyed (261) 261 Prototype IDs (0) 0 Alien Tech Used (0) 0 Bonus (0) 0 TOTAL SCORE: 721 Bonus ------- None Cogmind --------- Core Integrity 0/250 Matter 300/300 Energy 100/100 System Corruption 0% Temperature Cool (98) Movement Core (50) Location -10/Mines Parts ------- > --- POWER (1) -------- (None) > --- PROPULSION (2) --- (None) > --- UTILITY (2) ------ Signal Interpreter Hacking Suite > --- WEAPON (2) ------- (None) > --- INVENTORY (5) ---- Mining Claw Peak State ------------ > --- POWER ------------ Ion Engine > --- PROPULSION ------- Light Treads Light Treads > --- UTILITY ---------- Signal Interpreter Hacking Suite > --- WEAPON ----------- Particle Gun Mining Claw > --- INVENTORY -------- Mining Claw [Rating: 10] Favorites ----------- Power Ion Engine Engine Ion Engine Propulsion Light Treads Treads Light Treads Utility Signal Interpreter Processor Signal Interpreter Hackware Hacking Suite Weapon Mining Claw Energy Gun Particle Gun Ballistic Gun Assault Rifle Impact Weapon Hammer Slashing Weapon Mining Claw Build | -11 -10 -10 ------- Run | Yrd Mat Min Slots Evolved . | . . . Power . | . . . Propulsion . | . . . Utility . | . . . Weapon . | . . . Parts Attached 13 | 5 8 . Power 2 | 1 1 . Engine 2 | 1 1 . Core . | . . . Reactor . | . . . Propulsion 3 | 2 1 . Treads 3 | 2 1 . Leg . | . . . Wheel . | . . . Hover . | . . . Flight . | . . . Utility 3 | . 3 . Device . | . . . Storage . | . . . Processor 2 | . 2 . Hackware 1 | . 1 . Protection . | . . . Artifact . | . . . Weapon 5 | 2 3 . Energy Gun 1 | . 1 . Energy Cannon . | . . . Ballistic Gun 2 | 2 . . Ballistic Cannon . | . . . Launcher . | . . . Special Weapon . | . . . Impact Weapon 1 | . 1 . Slashing Weapon 1 | . 1 . Piercing Weapon . | . . . Special Melee Weapon . | . . . Unidentified Prototypes . | . . . Parts Lost 6 | . 2 4 Power 2 | . 1 1 Propulsion 2 | . 1 1 Utility . | . . . Weapon 2 | . . 2 Highest Loss Streak 4 | . 1 4 To Critical Strikes . | . . . Average Slot Usage (%) 77 | . 76 83 Engine 6 | . 5 14 Treads 25 | . 27 12 Processor 12 | . 12 14 Hackware 3 | . 2 14 Energy Gun 9 | . 8 14 Ballistic Gun 6 | . 7 . Slashing Weapon 11 | . 11 14 Naked Turns . | . . . Heaviest Build 10 | 8 10 10 Greatest Support 40 | 40 40 20 Greatest Overweight (x) 3 | . . 3 Average Overweight (x) . | . . . Largest Inventory Capacity 5 | 5 5 5 Average Capacity 5 | 5 5 5 Most Carried 5 | 5 2 1 Average Carried . | . . 1 Final Capacity 5 | 5 5 5 Final Carried 1 | . 1 1 Class Distribution -------------------- 75% | Mutant 24% | Scavenger-Mutant Dominant Class ---------------- Mutant | -10/Materials Scavenger-Mutant | -10/Mines Resources | -11 -10 -10 ----------- Run | Yrd Mat Min Matter Collected 355 | 211 144 . Remotely . | . . . Salvage Created 395 | . 382 13 Parts 35 | . 33 2 Haulers Intercepted 1 | . 1 . Recyclers Shooed 1 | . 1 . Parts Field Recycled . | . . . Retrieved Matter . | . . . Parts Self-Destructed . | . . . Prevented . | . . . Kills | -11 -10 -10 ------- Run | Yrd Mat Min Combat Hostiles Destroyed 6 | . 5 1 Melee 3 | . 3 . Guns 3 | . 2 1 Classes Destroyed 7 | . 6 1 Builder 1 | . 1 . Hauler 1 | . 1 . Mechanic 1 | . 1 . Operator 1 | . 1 . Watcher 2 | . 2 . Swarmer 1 | . . 1 Grunt 5 | . 5 . Best Kill Streak 3 | . 3 1 Combat Bots Only 3 | . 3 1 Max Kills in Single Turn 1 | . 1 1 Gunslinging . | . . . Exploded . | . . . Melee 1 | . 1 . Uniques/NPCs Destroyed . | . . . Combat | -11 -10 -10 -------- Run | Yrd Mat Min Hostile Shots Fired 106 | . 61 45 Missed 24 | . 14 10 Damage Taken 929 | . 563 366 Core 257 | . 127 130 Absorbed by Shields . | . . . Core Remaining (%) 100 | 100 . . Volleys Fired 63 | . 57 6 Largest 1 | . 1 1 Hottest 65 | . 65 65 Shots Fired 63 | . 57 6 Gun 63 | . 57 6 Cannon . | . . . Launcher . | . . . Special . | . . . Kinetic 15 | . 15 . Thermal 48 | . 42 6 Explosive . | . . . Electromagnetic . | . . . Robot Hit Streak 7 | . 7 3 Robot Miss Streak 5 | . 5 2 Penetration Max . | . . . Secondary Targets . | . . . Shots Hit Robots 37 | . 33 4 Core Hits 17 | . 15 2 Critical Kills . | . . . Critical Parts Destroyed . | . . . Critical Strikes 2 | . 2 . Burn 2 | . 2 . Melee Attacks 11 | . 11 . Impact . | . . . Slashing 11 | . 11 . Piercing . | . . . Sneak Attacks 1 | . 1 . Combat Hostiles . | . . . Follow-up Attacks . | . . . Damage Inflicted 645 | . 579 66 Guns 478 | . 413 65 Cannons . | . . . Explosions . | . . . Melee 166 | . 166 . Ramming 1 | . . 1 Kinetic 73 | . 73 . Thermal 405 | . 340 65 Explosive . | . . . Electromagnetic . | . . . Impact . | . . . Slashing 166 | . 166 . Piercing . | . . . Highest Corruption . | . . . Average Corruption . | . . . Corruption Purged . | . . . Corruption Blocked . | . . . Overload Shots . | . . . Overflow Damage . | . . . Projectiles . | . . . Explosions . | . . . Melee . | . . . Knockbacks . | . . . Impact . | . . . Kinetic . | . . . Secondary . | . . . Self-Inflicted Damage . | . . . Shots . | . . . Rammed 1 | . . 1 Targets Rammed 1 | . . 1 Kicked . | . . . Crushed . | . . . Highest Temperature 282 | . 282 162 Average Temperature 73 | . 71 90 Received Heat Transfer 372 | . 318 54 Siege Activations . | . . . Robots Corrupted . | . . . Combat Hostiles . | . . . Parts Fried . | . . . Impact Corruptions . | . . . Robots Melted . | . . . Combat Hostiles . | . . . Parts Melted 2 | . 2 . Heat Transferred 1110 | . 962 148 Parts Sabotaged . | . . . Parts Stolen . | . . . Parts Stripped . | . . . Power Chain Reactions . | . . . Alert | -11 -10 -10 ------- Run | Yrd Mat Min Peak Influence 129 | . 129 45 Initial . | . . . Average 35 | . 40 5 Maximum Alert Level . | . . . Low Security (%) 100 | 100 100 100 Level 1 . | . . . Level 2 . | . . . Level 3 . | . . . Level 4 . | . . . Level 5 . | . . . High Security . | . . . Max Security . | . . . Squads Dispatched 2 | . 2 . Investigation 1 | . 1 . Extermination . | . . . Reinforcement 1 | . 1 . Assault . | . . . Garrison . | . . . Intercept . | . . . Searches Triggered . | . . . Construction Impeded . | . . . Haulers Reinforced . | . . . Active Scanning Responses . | . . . Cargo Convoy Interrupts . | . . . Stealth | -11 -10 -10 --------- Run | Yrd Mat Min Distress Signals 2 | . 2 . Communications Jammed . | . . . Distress Signals . | . . . Times Spotted 21 | . 16 5 Peak Tracking Total 5 | . 4 5 Tactical Retreats . | . . . Traps | -11 -10 -10 ------- Run | Yrd Mat Min Traps Triggered 1 | . 1 . Indirectly . | . . . Trap Hack Attempts . | . . . Triggered . | . . . Disarmed . | . . . Reprogrammed . | . . . Reused . | . . . Traps Extracted . | . . . Installed . | . . . Triggered . | . . . Machines | -11 -10 -10 ---------- Run | Yrd Mat Min Machines Disabled 1 | . 1 . Max in Single Turn 1 | . 1 . Machines Repaired . | . . . Machines Dismantled . | . . . Machines Sabotaged . | . . . Overloaded Fab Kills . | . . . Hacking | -11 -10 -10 --------- Run | Yrd Mat Min Machines Accessed 3 | . 3 . Terminals 2 | . 2 . Fabricators . | . . . Repair Stations . | . . . Recycling Units 1 | . 1 . Scanalyzers . | . . . Garrison Access . | . . . Total Hacks 10 | . 10 . Successful 5 | . 5 . Failed 5 | . 5 . Catastrophic . | . . . Database Lockouts . | . . . Manual . | . . . Terminals 8 | . 8 . Fabricators . | . . . Repair Stations . | . . . Recycling Units 2 | . 2 . Scanalyzers . | . . . Garrison Access . | . . . Terminal Hacks 3 | . 3 . Record 2 | . 2 . Robot Analysis 1 | . 1 . Fabricator Hacks . | . . . Repair Station Hacks . | . . . Recycling Unit Hacks 2 | . 2 . Process 1 | . 1 . Retrieve Matter 1 | . 1 . Scanalyzer . | . . . Garrison Access Hacks . | . . . Unauthorized Hacks . | . . . Terminals . | . . . Fabricators . | . . . Repair Stations . | . . . Recycling Units . | . . . Scanalyzers . | . . . Garrison Access . | . . . Data Cores Recovered . | . . . Used . | . . . Hacking Detections 2 | . 2 . Full Trace Events 1 | . 1 . Feedback Events . | . . . Feedback Blocked . | . . . Robot Schematics Acquired . | . . . Robots Built . | . . . Authchips . | . . . Time . | . . . Total Robot Build Rating . | . . . Part Schematics Acquired . | . . . Parts Built . | . . . Authchips . | . . . Time . | . . . Total Part Build Rating . | . . . Parts Repaired . | . . . Time . | . . . Parts Recycled . | . . . Recycled Matter 10 | . 10 . Retrieved Matter 10 | . 10 . Retrieved Components . | . . . Parts Scanalyzed . | . . . Part Schematics Acquired . | . . . Parts Damaged . | . . . Bothacking | -11 -10 -10 ------------ Run | Yrd Mat Min Used RIF Installer . | . . . Robots Hacked . | . . . Non-combat . | . . . Combat . | . . . Robot Hacks Applied . | . . . Relay Couplers Released . | . . . Fabnet Peak Effective % . | . . . Robots Rewired . | . . . Allies Hacked . | . . . Hacks Repelled . | . . . Allies | -11 -10 -10 -------- Run | Yrd Mat Min Total Allies . | . . . Largest Group . | . . . Highest-Rated Group . | . . . Highest-Rated Ally . | . . . Total Orders . | . . . Ally Attacks . | . . . Total Damage . | . . . Kills . | . . . Allies Corrupted . | . . . Allies Melted . | . . . Intel | -11 -10 -10 ------- Run | Yrd Mat Min Robot Analysis Total 1 | . 1 . Derelict Logs Recovered 1 | . . 1 Drone Launches . | . . . Drone Recoveries . | . . . Exploration | -11 -10 -10 ------------- Run | Yrd Mat Min Turns Passed 973 | 46 831 96 Spaces Moved 500 | 34 414 52 Core 19 | 16 . 3 Treads 481 | 18 414 49 Legs . | . . . Wheels . | . . . Hover . | . . . Flight . | . . . Fastest Speed 50 | 50 160 100 Average Speed 156 | 108 160 159 Slowest Speed 200 | 160 160 200 Overloaded Moves . | . . . Propulsion Burnouts . | . . . Robots Hopped . | . . . Cave-ins Triggered . | . . . Exploration Rate (%) 23 | 3 51 17 Regions Visited 2 Branch Regions 1 Pre-discovered Areas 2 | . . 2 Known Exits Taken 1 | . 1 . Unknown Exits Taken 1 | 1 . . Scrap Searched . | . . . Spaces Dug . | . . . Terrain Destroyed . | . . . Melee . | . . . Projectile . | . . . AOE . | . . . Terrain Rammed . | . . . Walls Destroyed . | . . . Machines Disabled . | . . . Actions | -11 -10 -10 --------- Run | Yrd Mat Min Total 606 | 43 504 59 Wait . | . . . Move 498 | 33 413 52 Hop . | . . . Pick Up 15 | 5 10 . Fast Attach . | . . . Attach 8 | 5 3 . Detach . | . . . Swap 5 | . 5 . Drop 5 | . 5 . Fire 63 | . 57 6 Melee 11 | . 11 . Ram 1 | . . 1 Kick . | . . . Crush . | . . . Escape Stasis . | . . . Rewire . | . . . Trap . | . . . Miscellaneous . | . . . Route ------- -11/Scrapyard -10/Materials -10/Mines (discovered 1 exit: [*Mat]) History --------- Turn | Location | Event 5 | -11/Scrapyard | Discovered new exit (range 15) 47 | -11/Scrapyard | Entered Materials 303 | -10/Materials | Build established: Mutant 477 | -10/Materials | Discovered new exit (range 12) 542 | -10/Materials | Identified exit to Mines 825 | -10/Materials | Core integrity fell below 50% 878 | -10/Materials | Entered Mines 879 | -10/Mines | Learned location of Storage (-9) 939 | -10/Mines | Discovered new exit (range 15) 966 | -10/Mines | Core integrity fell below 20% 974 | -10/Mines | Destroyed by Y-45 Defender with Beam Rifle Last Messages --------------- 81-GHJ(g): "We scattered so the Unaware couldn't effectively use their advantage in numbers, and I suggest you do the same." 81-GHJ(g) slips back into the shadows. Acquired derelict log, extracted data. World map updated: -9/Materials. K-01 Serf collects debris. EXIT=FOUND K-01 Serf collects debris. S-10 Pest destroyed. K-01 Serf collects debris. K-01 Serf suffers critical hit (Burn). K-01 Serf destroyed. Lgt. Treads destroyed. K-01 Serf collects debris. Particle Gun destroyed. Mining Claw destroyed. K-01 Serf collects debris. Slammed into Y-45 Defender. Ion Engine destroyed. Map ----- +----------------------------------------------------+ | | | | | | | | | | | | | | | | | | | | | | | | | | | | | ??????????????????????????????????????????????? | | ??????????????????????????????????????????????? | | ??????????????????????????????????????????????? | | ????????????????????######????????????????????? | | ???????????????????## ##?????? ??????????? | | ???????????????????# #?????< ??????????? | | ???????????????###?# #???? ?????????? | | ??????????????##" ## ##??# #?????????? | | ??????????????#"" # ### #??????????? | | ??????????????#!! + #??????????? | | ??????????????#!/ += Y ##?????????? | | ??????????????#"" #k=@Y ????????? | | ??????????????##" ## ????????? | | ?????????? #########s ## ????????? | | ????????# s ##?????? ?????????? | | ????????# $ #??????????????????? | | ????????########## ! ##??????????????????? | | ????????????????## k %* ##???????????????????? | | ????????????????# = #????????????????????? | | ????????????????# ### #????????????????????? | | ???????????????# #??# #????????????????????? | | ?????????????? #???# #????????????????????? | | ????????????# #????# #????????????????????? | | ???????????? #?????# #????????????????????? | | ???????????? #??????# #????????????????????? | | ???????????? ???????# #????????????????????? | | ????????????? ????????# #####????????????????? | | ??????????????????????# #????????????????? | | ??????????????????????## ### #????????????????? | | ???????????????????????# #????????????????????? | | ???????????????????????# #????????????????????? | | ???????????????????????# #????????????????????? | | ???????????????????????# #????????????????????? | | ???????????# ######### #????????????????????? | | ????????????# #????????????????????? | | ????????????# ######### #????????????????????? | +----------------------------------------------------+ Best States ------------- Heat Dissipation 25 Energy Generation 10 Energy Capacity 250 Matter Stores 300 Matter Capacity 300 Sight Range 16 Terrain Scan Density 10 Evasion (%) 50 Recoil Reduction 2 Offensive Hacking 10 Item Schematics ----------------- None Robot Schematics ------------------ None Fabricated ------------ Nothing Alien Tech Used ----------------- None Achievements -------------- None Challenges ------------ None Game ------ Seed ControlMetafiberFragment Manual? 0 Play Time 00:06:47 Cumulative 4.3 hours Start 2024.04.28 @ 11:16:38 End 2024.04.28 @ 13:19:33 Sessions 1 Manual Loads 0 Difficulty Rogue Special Mode None Game No. 19 Rogue 5 Adventurer 14 Explorer 0 Win Type - Total 0 Types 0/0/0/0/0/0/0/0/0 Lore% 13 Gallery% 13 Achievement% 13 Wizard Run 0 Options --------- Layout 1 ASCII 0 Keyboard 0 Movement Mouse Keybinds 0 Fullscreen 2 Font 24/Proggy Map View 50x35 Zoom Use 0% Tactical HUD 0 Map Filters NONE Filters NONE Steam 1 RUN: 2296353a-5115-4206-b6f0-1ee4c07367fb